[Event "FAI-ch Main 2020"]
[Site "Runavik"]
[Date "2020.10.23"]
[Round "1.1"]
[White "Gregersen, Einar"]
[Black "Dahl, Karl M"]
[Result "1-0"]
[ECO "B70"]
[WhiteElo "1758"]
[BlackElo "1590"]
[Annotator "NA RC"]
[PlyCount "63"]
[EventDate "2020.10.23"]
[EventType "swiss"]
[EventCountry "FAI"]
[SourceTitle "playchess.com"]
[Source "ChessBase"]
[SourceQuality "1"]
[TimeControl "40/5400+30:900+30"]

1. e4 {[%emt 0:00:00]} c5 {[%emt 0:00:00]} 2. Nf3 {[%emt 0:00:00]} d6 {[%emt 0:00:00]} 3. d4 {[%emt 0:00:00]} cxd4 {[%emt 0:00:06]} 4. Nxd4 {[%emt 0:00:00]} Nf6 {[%emt 0:00:21]} 5. Nc3 {[%emt 0:00:06]} g6 {[%emt 0:00:15]} 6. Be2 {[%emt 0:00:40]} Bg7 {[%emt 0:00:18]} 7. O-O {[%emt 0:00:47]} O-O {[%emt 0:00:09]} 8. Be3 {[%emt 0:02:59]} Nc6 {[%emt 0:01:41]} 9. f4 {[%emt 0:04:18]} a6 {[%emt 0:03:30]} 10. Kh1 {[%emt 0:03:41]} Nxd4 {[%emt 0:03:31]} 11. Bxd4 {[%emt 0:00:30]} b5 {[%emt 0:00:33]} 12. Bf3 {[%emt 0:03:01]} Bb7 {[%emt 0:02:28]} 13. a3 {[%emt 0:12:28]} Rc8 {[%emt 0:06:48]} 14. Qe1 {[%emt 0:05:24]} Qc7 {[%emt 0:05:07]} 15. Rd1 {[%emt 0:04:45]} Nd7 {[%emt 0:05:31]} 16. Bxg7 Kxg7 {[%emt 0:00:14]} 17. Qh4 {[%emt 0:13:02]} Rfe8 {[%emt 0:05:48]} 18. Bg4 {[%emt 0:06:50]} e6 {[%emt 0:05:42]} 19. f5 {[%emt 0:05:04]} exf5 {[%emt 0:03:40]} 20. exf5 {[%emt 0:00:55]} f6 {[%emt 0:00:49]} 21. fxg6 {[%emt 0:01:27]} hxg6 {[%emt 0:00:42]} 22. Bxd7 {[%emt 0:00:29]} Qxd7 {[%emt 0:00:12]} 23. Qxf6+ {[%emt 0:01:12]} Kg8 {[%emt 0:01:11]} 24. Qxg6+ {[%emt 0:01:41]} Qg7 {[%emt 0:00:20]} 25. Qxg7+ {[%emt 0:01:42]} Kxg7 {[%emt 0:00:02]} 26. Rxd6 {[%emt 0:00:32]} Rc7 {[%emt 0:01:05]} 27. h3 {[%emt 0:01:20]} Re3 {[%emt 0:00:52]} 28. Kh2 {[%emt 0:01:32]} Kh7 {[%emt 0:00:03]} 29. Rfd1 {[%emt 0:01:56]} Ree7 {[%emt 0:00:51]} 30. R1d2 {[%emt 0:01:07]} Rg7 {[%emt 0:00:26]} 31. Nd5 {[%emt 0:01:26]} Rcf7 {[%emt 0:00:33]} 32. Nf6+ {[%emt 0:00:55]} 1-0

[Event "FAI-ch Main 2020"]
[Site "Runavik"]
[Date "2020.10.23"]
[Round "1.2"]
[White "Joensen, Sigurd"]
[Black "Hojgaard, Brandur"]
[Result "1/2-1/2"]
[ECO "C24"]
[WhiteElo "1537"]
[BlackElo "1741"]
[Annotator "NA RC"]
[PlyCount "105"]
[EventDate "2020.10.23"]
[EventType "swiss"]
[EventCountry "FAI"]
[SourceTitle "playchess.com"]
[Source "ChessBase"]
[SourceQuality "1"]
[TimeControl "40/5400+30:900+30"]

1. e4 {[%emt 0:00:00]} e5 {[%emt 0:00:29]} 2. Bc4 Nf6 3. d3 {[%emt 0:01:08]} Bc5 {[%emt 0:01:22]} 4. h3 {[%emt 0:01:08]} Nc6 {[%emt 0:00:45]} 5. Nf3 {[%emt 0:00:38]} d6 {[%emt 0:00:43]} 6. Bg5 {[%emt 0:00:40]} h6 {[%emt 0:00:47]} 7. Bh4 {[%emt 0:00:04]} Be6 {[%emt 0:03:45]} 8. Nbd2 {[%emt 0:03:40]} a6 {[%emt 0:04:29]} 9. c3 {[%emt 0:01:48]} Qe7 {[%emt 0:09:16]} 10. Qe2 {[%emt 0:03:20]} Bb6 {[%emt 0:04:14]} 11. Bb3 {[%emt 0:01:56]} Bxb3 {[%emt 0:02:16]} 12. Nxb3 {[%emt 0:03:00]} Qe6 {[%emt 0:00:47]} 13. Bxf6 Qxf6 {[%emt 0:01:50]} 14. O-O-O {[%emt 0:12:31]} O-O-O {[%emt 0:02:04]} 15. Kb1 {[%emt 0:03:01]} Kb8 {[%emt 0:01:26]} 16. Rhf1 {[%emt 0:05:44]} Rhf8 {[%emt 0:05:43]} 17. Nh2 {[%emt 0:07:23]} Qe7 {[%emt 0:03:13]} 18. f4 {[%emt 0:03:23]} f5 {[%emt 0:04:25]} 19. exf5 {[%emt 0:08:41]} Rxf5 {[%emt 0:01:44]} 20. fxe5 {[%emt 0:04:26]} Rxe5 {[%emt 0:02:59]} 21. Qf3 {[%emt 0:08:13]} Re3 {[%emt 0:05:36]} 22. Qf7 {[%emt 0:01:23]} Qg5 {[%emt 0:01:50]} 23. Ng4 {[%emt 0:09:39]} Re7 {[%emt 0:07:03]} 24. Qf5 {[%emt 0:01:34]} Qh4 {[%emt 0:01:39]} 25. d4 {[%emt 0:01:00]} Rde8 {[%emt 0:00:28]} 26. Qf3 {[%emt 0:02:00]} a5 {[%emt 0:05:56]} 27. Rd3 {[%emt 0:05:03]} h5 {[%emt 0:03:21]} 28. Ne3 {[%emt 0:02:35]} a4 {[%emt 0:05:58]} 29. Nd2 {[%emt 0:01:59]} Qg5 {[%emt 0:03:08]} 30. Nd5 Re1+ {[%emt 0:01:33]} 31. Rxe1 {[%emt 0:03:05]} Rxe1+ {[%emt 0:06:35]} 32. Kc2 {[%emt 0:00:41]} Qg6 {[%emt 0:00:31]} 33. Nxb6 {[%emt 0:01:19]} cxb6 {[%emt 0:04:39]} 34. Nc4 Ka7 35. a3 {[%emt 0:01:48]} b5 {[%emt 0:04:26]} 36. Ne3 {[%emt 0:00:07]} Na5 {[%emt 0:01:00]} 37. Qf2 {[%emt 0:00:47]} Ra1 {[%emt 0:00:43]} 38. Nf5 {[%emt 0:01:44]} d5 {[%emt 0:01:15]} 39. Rd1 {[%emt 0:00:56]} Ra2 {[%emt 0:00:34]} 40. Kb1 {[%emt 0:00:00]} Rxa3 {[%emt 0:00:00]} 41. bxa3 {[%emt 0:02:29]} Nc4 {[%emt 0:01:04]} 42. Ka2 {[%emt 0:02:57]} Qf6 {[%emt 0:01:28]} 43. Qf3 {[%emt 0:04:54]} Qf8 {[%emt 0:00:43]} 44. Qf2 {[%emt 0:01:08]} g6 {[%emt 0:03:07]} 45. g4 {[%emt 0:02:35]} hxg4 {[%emt 0:03:06]} 46. hxg4 {[%emt 0:00:19]} Qxa3+ {[%emt 0:01:06]} 47. Kb1 {[%emt 0:00:39]} Qb3+ {[%emt 0:00:35]} 48. Kc1 {[%emt 0:01:57]} Qxc3+ {[%emt 0:03:21]} 49. Qc2 {[%emt 0:00:26]} Qa1+ {[%emt 0:01:59]} 50. Qb1 {[%emt 0:00:03]} Qc3+ {[%emt 0:02:05]} 51. Qc2 {[%emt 0:00:06]} Qa1+ {[%emt 0:00:24]} 52. Qb1 {[%emt 0:00:04]} Qc3+ 53. Qc2 1/2-1/2

[Event "FAI-ch Main 2020"]
[Site "Runavik"]
[Date "2020.10.23"]
[Round "1.3"]
[White "Joensen, Henrik W."]
[Black "Bjarnasson, Bessi"]
[Result "1-0"]
[ECO "C44"]
[WhiteElo "1650"]
[BlackElo "1494"]
[Annotator "NA"]
[PlyCount "49"]
[EventDate "2020.10.23"]
[EventType "swiss"]
[EventCountry "FAI"]
[SourceTitle "playchess.com"]
[Source "ChessBase"]
[SourceQuality "1"]
[TimeControl "40/5400+30:900+30"]

1. e4 {[%emt 0:00:00]} e5 {[%emt 0:00:00]} 2. Nf3 {[%emt 0:00:00]} Nc6 {[%emt 0:00:00]} 3. d4 {[%emt 0:00:08]} exd4 {[%emt 0:01:07]} 4. Bc4 {[%emt 0:00:28]} Bb4+ {[%emt 0:02:09]} 5. c3 {[%emt 0:00:30]} dxc3 {[%emt 0:02:03]} 6. Nxc3 {[%emt 0:00:47]} h6 {[%emt 0:01:11]} 7. O-O {[%emt 0:01:14]} Nge7 {[%emt 0:01:57]} 8. Bf4 {[%emt 0:07:48]} O-O {[%emt 0:00:50]} 9. Nd5 {[%emt 0:01:12]} Nxd5 {[%emt 0:03:18]} 10. exd5 {[%emt 0:00:48]} Ne7 {[%emt 0:01:49]} 11. a3 {[%emt 0:01:18]} Ba5 {[%emt 0:00:25]} 12. b4 {[%emt 0:00:46]} Bb6 {[%emt 0:00:03]} 13. d6 {[%emt 0:03:45]} Ng6 {[%emt 0:00:20]} 14. Bg3 {[%emt 0:00:58]} a6 {[%emt 0:05:20]} 15. Qb3 {[%emt 0:02:08]} c6 {[%emt 0:05:40]} 16. Rfe1 {[%emt 0:01:08]} Ba7 {[%emt 0:01:21]} 17. h4 {[%emt 0:04:24]} b5 {[%emt 0:01:36]} 18. Bd3 {[%emt 0:00:15]} Kh8 {[%emt 0:03:11]} 19. h5 {[%emt 0:00:33]} Qf6 {[%emt 0:04:24]} 20. hxg6 fxg6 {[%emt 0:00:03]} 21. Be5 {[%emt 0:02:53]} Qd8 {[%emt 0:02:28]} 22. Bxg6 {[%emt 0:02:01]} Rxf3 {[%emt 0:04:21]} 23. Qxf3 {[%emt 0:00:54]} Bb7 {[%emt 0:02:12]} 24. Bxg7+ Kg8 {[%emt 0:01:36]} 25. Bf5 {[%emt 0:00:00]} 1-0

[Event "FAI-ch Main 2020"]
[Site "Runavik"]
[Date "2020.10.23"]
[Round "1.4"]
[White "Joensen, Jon Magnus"]
[Black "Tummasarson, Flovin M."]
[Result "0-1"]
[ECO "C50"]
[WhiteElo "1461"]
[BlackElo "1625"]
[Annotator "NA"]
[PlyCount "46"]
[EventDate "2020.10.23"]
[EventType "swiss"]
[EventCountry "FAI"]
[SourceTitle "playchess.com"]
[Source "ChessBase"]
[SourceQuality "1"]
[TimeControl "40/5400+30:900+30"]

1. e4 {[%emt 0:00:00]} e5 {[%emt 0:00:00]} 2. Nf3 {[%emt 0:00:00]} Nc6 {[%emt 0:00:04]} 3. Bc4 {[%emt 0:00:10]} Bc5 {[%emt 0:01:05]} 4. O-O {[%emt 0:00:25]} Nf6 {[%emt 0:00:44]} 5. d3 {[%emt 0:00:26]} d6 {[%emt 0:00:11]} 6. h3 {[%emt 0:00:10]} Be6 {[%emt 0:03:50]} 7. Bb3 {[%emt 0:00:16]} Qd7 {[%emt 0:03:52]} 8. Bxe6 {[%emt 0:02:12]} fxe6 {[%emt 0:00:58]} 9. Be3 {[%emt 0:00:27]} Bb6 {[%emt 0:02:01]} 10. Bxb6 {[%emt 0:01:29]} axb6 {[%emt 0:00:08]} 11. c3 {[%emt 0:06:15]} O-O {[%emt 0:01:29]} 12. Nh2 {[%emt 0:00:26]} Ne7 {[%emt 0:05:20]} 13. Nd2 {[%emt 0:02:53]} Ng6 {[%emt 0:01:25]} 14. Ng4 {[%emt 0:00:26]} Nf4 {[%emt 0:02:21]} 15. Nxf6+ {[%emt 0:01:13]} Rxf6 {[%emt 0:00:11]} 16. Nf3 {[%emt 0:00:31]} Qf7 {[%emt 0:06:57]} 17. Ne1 {[%emt 0:07:04]} Rf8 {[%emt 0:05:57]} 18. f3 {[%emt 0:02:53]} Qh5 {[%emt 0:02:35]} 19. Kf2 {[%emt 0:01:07]} Qh4+ {[%emt 0:06:03]} 20. Ke3 {[%emt 0:01:24]} Rg6 {[%emt 0:01:59]} 21. Qc2 Qg5 {[%emt 0:02:00]} 22. Kd2 {[%emt 0:05:37]} Nxg2+ {[%emt 0:01:18]} 23. Kd1 {[%emt 0:00:49]} Ne3+ {[%emt 0:00:08]} 0-1

[Event "FAI-ch Main 2020"]
[Site "Runavik"]
[Date "2020.10.23"]
[Round "1.5"]
[White "Morkore, Rogvi"]
[Black "Rasmussen, Gunnleif"]
[Result "1-0"]
[ECO "A25"]
[WhiteElo "1592"]
[BlackElo "1148"]
[Annotator "NA RC"]
[PlyCount "70"]
[EventDate "2020.10.23"]
[EventType "swiss"]
[EventCountry "FAI"]
[SourceTitle "playchess.com"]
[Source "ChessBase"]
[SourceQuality "1"]
[TimeControl "40/5400+30:900+30"]

1. c4 {[%emt 0:00:00]} e5 {[%emt 0:00:00]} 2. Nc3 {[%emt 0:00:01]} Nc6 {[%emt 0:00:33]} 3. g3 {[%emt 0:00:17]} f5 {[%emt 0:00:51]} 4. Bg2 {[%emt 0:00:41]} Nf6 {[%emt 0:00:42]} 5. e3 {[%emt 0:00:34]} d5 {[%emt 0:05:10]} 6. Nxd5 {[%emt 0:12:56]} Nxd5 {[%emt 0:01:34]} 7. cxd5 {[%emt 0:00:26]} Nb4 {[%emt 0:00:45]} 8. d3 {[%emt 0:03:05]} Nxd5 {[%emt 0:03:30]} 9. a3 {[%emt 0:01:51]} Be6 {[%emt 0:03:07]} 10. Ne2 {[%emt 0:01:48]} c6 {[%emt 0:02:00]} 11. O-O {[%emt 0:02:12]} Bd6 {[%emt 0:01:25]} 12. b4 {[%emt 0:01:26]} O-O {[%emt 0:01:46]} 13. Bb2 {[%emt 0:05:26]} Ne7 {[%emt 0:09:29]} 14. d4 {[%emt 0:04:12]} Ng6 {[%emt 0:03:39]} 15. d5 {[%emt 0:04:08]} cxd5 {[%emt 0:01:53]} 16. Bxd5 {[%emt 0:00:10]} Qe7 {[%emt 0:00:39]} 17. Qb3 {[%emt 0:00:17]} Rf6 {[%emt 0:01:41]} 18. Nf4 {[%emt 0:10:05]} Nxf4 {[%emt 0:06:40]} 19. exf4 {[%emt 0:00:28]} Bxd5 {[%emt 0:01:40]} 20. Qxd5+ {[%emt 0:00:08]} Re6 {[%emt 0:00:35]} 21. fxe5 {[%emt 0:00:40]} Bc7 {[%emt 0:13:12]} 22. Qxb7 {[%emt 0:01:08]} Rb8 {[%emt 0:08:27]} 23. Qxa7 {[%emt 0:00:48]} Rb5 {[%emt 0:00:07]} 24. a4 {[%emt 0:02:36]} Rd5 {[%emt 0:01:07]} 25. Rad1 {[%emt 0:01:19]} Rxd1 {[%emt 0:03:38]} 26. Rxd1 {[%emt 0:00:09]} Bxe5 {[%emt 0:04:07]} 27. Qxe7 {[%emt 0:01:02]} Rxe7 {[%emt 0:00:10]} 28. Re1 {[%emt 0:00:43]} Bf6 {[%emt 0:00:52]} 29. Rxe7 {[%emt 0:00:13]} Bxe7 {[%emt 0:00:08]} 30. b5 {[%emt 0:00:10]} Bc5 {[%emt 0:00:31]} 31. a5 {[%emt 0:00:19]} Bb4 {[%emt 0:04:00]} 32. a6 {[%emt 0:01:20]} Bc5 {[%emt 0:00:09]} 33. Ba3 {[%emt 0:00:12]} Bb6 {[%emt 0:00:09]} 34. Bd6 {[%emt 0:00:13]} Kf7 {[%emt 0:00:20]} 35. Bc7 Kg8 1-0

[Event "FAI-ch Main 2020"]
[Site "Runavik"]
[Date "2020.10.24"]
[Round "2.1"]
[White "Tummasarson, Flovin M."]
[Black "Gregersen, Einar"]
[Result "1-0"]
[ECO "B08"]
[WhiteElo "1625"]
[BlackElo "1758"]
[Annotator "NA RC"]
[PlyCount "81"]
[EventDate "2020.10.23"]
[EventType "swiss"]
[EventCountry "FAI"]
[SourceTitle "playchess.com"]
[Source "ChessBase"]
[SourceQuality "1"]
[TimeControl "40/5400+30:900+30"]

1. e4 {[%emt 0:00:00]} d6 {[%emt 0:00:00]} 2. d4 {[%emt 0:00:11]} Nf6 {[%emt 0:00:00]} 3. Nc3 {[%emt 0:00:49]} g6 {[%emt 0:00:00]} 4. Nf3 {[%emt 0:02:22]} Bg7 {[%emt 0:00:00]} 5. Bc4 {[%emt 0:03:17]} O-O {[%emt 0:00:08]} 6. O-O {[%emt 0:03:17]} Nxe4 {[%emt 0:01:14]} 7. Nxe4 {[%emt 0:07:36]} d5 {[%emt 0:00:10]} 8. Bxd5 {[%emt 0:01:24]} Qxd5 {[%emt 0:00:22]} 9. Re1 {[%emt 0:05:17]} Bg4 {[%emt 0:09:09]} 10. c3 {[%emt 0:06:42]} Nd7 {[%emt 0:06:34]} 11. h3 {[%emt 0:07:48]} Bf5 {[%emt 0:10:28]} 12. Ng3 {[%emt 0:04:48]} e6 {[%emt 0:05:57]} 13. Bf4 {[%emt 0:10:20]} Rac8 {[%emt 0:11:21]} 14. Ne5 {[%emt 0:07:56]} Nxe5 {[%emt 0:05:33]} 15. Bxe5 {[%emt 0:00:11]} f6 {[%emt 0:09:10]} 16. Nxf5 {[%emt 0:03:54]} exf5 {[%emt 0:00:22]} 17. Bh2 {[%emt 0:04:13]} Qb5 {[%emt 0:16:53]} 18. Re7 {[%emt 0:12:56]} Rf7 {[%emt 0:00:55]} 19. Rxf7 {[%emt 0:07:30]} Kxf7 {[%emt 0:00:08]} 20. Qb3+ {[%emt 0:00:40]} Qxb3 {[%emt 0:00:06]} 21. axb3 {[%emt 0:00:05]} a6 {[%emt 0:00:27]} 22. h4 {[%emt 0:00:57]} g5 {[%emt 0:03:08]} 23. Re1 {[%emt 0:01:28]} f4 {[%emt 0:01:35]} 24. g3 {[%emt 0:00:41]} g4 {[%emt 0:08:46]} 25. f3 {[%emt 0:03:24]} fxg3 {[%emt 0:03:12]} 26. Bxg3 {[%emt 0:00:14]} gxf3 {[%emt 0:00:08]} 27. Kf2 {[%emt 0:00:16]} c6 {[%emt 0:01:06]} 28. Kxf3 {[%emt 0:00:44]} h5 {[%emt 0:02:21]} 29. Bf4 {[%emt 0:01:45]} Bf8 {[%emt 0:01:17]} 30. Re2 {[%emt 0:00:35]} Bg7 {[%emt 0:01:39]} 31. Re1 {[%emt 0:00:39]} f5 {[%emt 0:00:25]} 32. Bg5 {[%emt 0:00:26]} Bf6 {[%emt 0:01:10]} 33. Kf4 {[%emt 0:00:19]} Rg8 {[%emt 0:00:33]} 34. Rg1 {[%emt 0:00:41]} Bxg5+ {[%emt 0:00:26]} 35. Rxg5 {[%emt 0:00:37]} Rxg5 {[%emt 0:01:06]} 36. Kxg5 {[%emt 0:00:10]} Ke6 {[%emt 0:01:20]} 37. b4 {[%emt 0:01:53]} b6 {[%emt 0:00:39]} 38. c4 {[%emt 0:00:46]} a5 {[%emt 0:00:25]} 39. bxa5 {[%emt 0:00:20]} bxa5 {[%emt 0:00:06]} 40. b3 {[%emt 0:00:00]} c5 {[%emt 0:00:00]} 41. dxc5 {[%emt 0:00:23]} 1-0

[Event "FAI-ch Main 2020"]
[Site "Runavik"]
[Date "2020.10.24"]
[Round "2.3"]
[White "Hojgaard, Brandur"]
[Black "Morkore, Rogvi"]
[Result "0-1"]
[ECO "A46"]
[WhiteElo "1741"]
[BlackElo "1592"]
[Annotator "NA RC"]
[PlyCount "140"]
[EventDate "2020.10.23"]
[EventType "swiss"]
[EventCountry "FAI"]
[SourceTitle "playchess.com"]
[Source "ChessBase"]
[SourceQuality "1"]
[TimeControl "40/5400+30:900+30"]

1. d4 {[%emt 0:00:00]} Nf6 {[%emt 0:00:00]} 2. Nf3 {[%emt 0:00:07]} e6 {[%emt 0:00:36]} 3. Bf4 {[%emt 0:00:19]} d5 {[%emt 0:00:54]} 4. e3 {[%emt 0:00:16]} Bd6 {[%emt 0:00:38]} 5. Bg3 {[%emt 0:02:02]} c5 {[%emt 0:01:22]} 6. c3 {[%emt 0:00:16]} Qc7 {[%emt 0:00:44]} 7. Bd3 {[%emt 0:04:23]} Nbd7 {[%emt 0:01:04]} 8. Nbd2 {[%emt 0:01:05]} e5 {[%emt 0:03:00]} 9. dxe5 {[%emt 0:03:25]} Nxe5 {[%emt 0:00:28]} 10. Nxe5 {[%emt 0:00:59]} Bxe5 {[%emt 0:00:10]} 11. Nf3 {[%emt 0:12:22]} Bxg3 {[%emt 0:02:57]} 12. hxg3 {[%emt 0:04:05]} Bg4 {[%emt 0:04:32]} 13. Qa4+ {[%emt 0:07:23]} Bd7 {[%emt 0:01:13]} 14. Qc2 {[%emt 0:08:22]} h6 {[%emt 0:02:46]} 15. Nh4 {[%emt 0:08:30]} Qe5 {[%emt 0:09:37]} 16. Bf5 {[%emt 0:04:25]} O-O {[%emt 0:14:01]} 17. Bxd7 {[%emt 0:01:40]} Nxd7 {[%emt 0:01:08]} 18. O-O-O {[%emt 0:04:34]} Nf6 {[%emt 0:03:30]} 19. Nf5 {[%emt 0:03:32]} Ne4 {[%emt 0:13:43]} 20. Rxd5 {[%emt 0:06:35]} Qe6 {[%emt 0:03:00]} 21. Rhd1 {[%emt 0:04:00]} b6 {[%emt 0:03:53]} 22. Kb1 {[%emt 0:02:46]} Rfe8 {[%emt 0:04:07]} 23. f3 {[%emt 0:01:38]} Nf6 {[%emt 0:00:10]} 24. Rd6 {[%emt 0:01:30]} Qe5 {[%emt 0:00:24]} 25. e4 {[%emt 0:03:29]} Re6 {[%emt 0:01:18]} 26. Rd8+ {[%emt 0:07:00]} Rxd8 {[%emt 0:01:49]} 27. Rxd8+ {[%emt 0:00:08]} Kh7 {[%emt 0:00:13]} 28. g4 {[%emt 0:02:02]} g6 {[%emt 0:01:34]} 29. Ne3 {[%emt 0:01:08]} Qg3 {[%emt 0:02:28]} 30. Qd2 {[%emt 0:01:26]} Nxe4 {[%emt 0:04:13]} 31. fxe4 {[%emt 0:00:57]} Rxe4 {[%emt 0:00:02]} 32. Nd1 {[%emt 0:02:46]} Qxg4 {[%emt 0:02:23]} 33. Qd6 {[%emt 0:01:17]} Re1 {[%emt 0:00:48]} 34. Qd5 {[%emt 0:01:21]} Kg7 {[%emt 0:00:18]} 35. Rd7 {[%emt 0:00:34]} Rf1 {[%emt 0:01:01]} 36. Qe5+ {[%emt 0:00:30]} Kh7 {[%emt 0:00:12]} 37. Qd5 {[%emt 0:00:51]} Kg7 {[%emt 0:00:17]} 38. a3 {[%emt 0:00:13]} Rf5 {[%emt 0:02:57]} 39. Qd2 {[%emt 0:00:45]} Qe4+ {[%emt 0:00:27]} 40. Ka1 {[%emt 0:00:00]} Qa4 {[%emt 0:00:00]} 41. Rd8 {[%emt 0:04:17]} Rf1 {[%emt 0:07:47]} 42. Qd6 {[%emt 0:01:54]} Kh7 {[%emt 0:00:42]} 43. Qd5 {[%emt 0:01:11]} a5 {[%emt 0:03:04]} 44. Rd7 {[%emt 0:03:19]} Kg7 {[%emt 0:01:05]} 45. c4 {[%emt 0:02:27]} Qc2 {[%emt 0:06:08]} 46. Ka2 {[%emt 0:02:19]} a4 {[%emt 0:00:33]} 47. Qd3 {[%emt 0:00:28]} Qxd3 {[%emt 0:02:40]} 48. Rxd3 {[%emt 0:00:02]} Rf4 {[%emt 0:04:18]} 49. b3 {[%emt 0:00:33]} h5 {[%emt 0:00:28]} 50. Nb2 {[%emt 0:01:19]} Rf2 {[%emt 0:00:55]} 51. g3 {[%emt 0:00:30]} g5 {[%emt 0:01:00]} 52. Kb1 {[%emt 0:01:05]} axb3 {[%emt 0:00:58]} 53. Rxb3 {[%emt 0:00:12]} h4 {[%emt 0:02:20]} 54. gxh4 {[%emt 0:00:47]} gxh4 {[%emt 0:00:02]} 55. Rh3 {[%emt 0:01:07]} Rf4 {[%emt 0:00:19]} 56. Kc2 {[%emt 0:00:43]} Kf6 {[%emt 0:00:38]} 57. Kd3 {[%emt 0:01:04]} Kf5 {[%emt 0:00:24]} 58. Ke3 {[%emt 0:00:51]} Re4+ {[%emt 0:00:16]} 59. Kf3 {[%emt 0:00:32]} Rf4+ {[%emt 0:00:07]} 60. Ke3 {[%emt 0:01:03]} Re4+ {[%emt 0:00:06]} 61. Kf2 {[%emt 0:00:23]} Kg4 {[%emt 0:00:38]} 62. Rf3 {[%emt 0:00:22]} f5 {[%emt 0:00:47]} 63. Nd3 {[%emt 0:00:33]} f4 {[%emt 0:00:12]} 64. Nb2 {[%emt 0:00:43]} h3 {[%emt 0:00:44]} 65. Rb3 {[%emt 0:00:32]} Re2+ {[%emt 0:01:07]} 66. Kg1 {[%emt 0:00:32]} f3 {[%emt 0:02:31]} 67. Nd3 {[%emt 0:00:28]} Kg3 {[%emt 0:03:07]} 68. Rb1 {[%emt 0:00:30]} Re3 {[%emt 0:00:58]} 69. Rd1 {[%emt 0:00:23]} Re2 {[%emt 0:00:26]} 70. Rf1 {[%emt 0:00:34]} Rd2 {[%emt 0:01:03]} 0-1

[Event "FAI-ch Main 2020"]
[Site "Runavik"]
[Date "2020.10.24"]
[Round "2.4"]
[White "Dahl, Karl M"]
[Black "Joensen, Sigurd"]
[Result "1-0"]
[ECO "D20"]
[WhiteElo "1590"]
[BlackElo "1537"]
[Annotator "NA RC"]
[PlyCount "72"]
[EventDate "2020.10.23"]
[EventType "swiss"]
[EventCountry "FAI"]
[SourceTitle "playchess.com"]
[Source "ChessBase"]
[SourceQuality "1"]
[TimeControl "40/5400+30:900+30"]

1. d4 {[%emt 0:00:00]} d5 {[%emt 0:00:35]} 2. c4 {[%emt 0:00:00]} dxc4 {[%emt 0:00:59]} 3. Nc3 {[%emt 0:00:39]} e6 {[%emt 0:01:24]} 4. e4 {[%emt 0:02:11]} c6 {[%emt 0:02:59]} 5. a4 {[%emt 0:03:30]} Bb4 {[%emt 0:04:55]} 6. Bxc4 {[%emt 0:03:17]} Ne7 {[%emt 0:04:05]} 7. Nf3 {[%emt 0:03:24]} O-O {[%emt 0:02:38]} 8. O-O {[%emt 0:02:54]} b6 {[%emt 0:08:04]} 9. Be3 {[%emt 0:07:02]} Bxc3 {[%emt 0:01:11]} 10. bxc3 {[%emt 0:00:02]} Ba6 {[%emt 0:00:31]} 11. Qe2 {[%emt 0:04:41]} Bxc4 {[%emt 0:02:11]} 12. Qxc4 {[%emt 0:00:07]} Qc8 {[%emt 0:03:14]} 13. a5 {[%emt 0:08:39]} Nd7 {[%emt 0:10:48]} 14. axb6 {[%emt 0:12:22]} axb6 {[%emt 0:03:22]} 15. Ng5 {[%emt 0:07:29]} Nf6 {[%emt 0:06:19]} 16. f3 {[%emt 0:06:25]} Rxa1 {[%emt 0:03:39]} 17. Rxa1 {[%emt 0:00:01]} h6 {[%emt 0:03:11]} 18. Nh3 {[%emt 0:00:03]} Ng6 {[%emt 0:02:56]} 19. Rb1 {[%emt 0:03:39]} Nd7 {[%emt 0:04:38]} 20. Nf4 {[%emt 0:03:50]} Nxf4 {[%emt 0:04:39]} 21. Bxf4 {[%emt 0:00:03]} Re8 {[%emt 0:02:24]} 22. Be3 {[%emt 0:09:55]} b5 {[%emt 0:01:12]} 23. Qb3 {[%emt 0:02:39]} Kh8 {[%emt 0:02:11]} 24. c4 {[%emt 0:00:32]} bxc4 {[%emt 0:01:09]} 25. Qxc4 {[%emt 0:00:24]} f5 {[%emt 0:06:05]} 26. Rc1 {[%emt 0:02:59]} fxe4 {[%emt 0:01:40]} 27. fxe4 {[%emt 0:00:05]} e5 {[%emt 0:03:56]} 28. d5 {[%emt 0:02:33]} Nb8 {[%emt 0:03:17]} 29. Ba7 {[%emt 0:02:26]} Qa6 {[%emt 0:01:43]} 30. Qxa6 {[%emt 0:01:58]} Nxa6 {[%emt 0:00:18]} 31. Rxc6 {[%emt 0:00:27]} Nb4 {[%emt 0:00:52]} 32. Rc7 {[%emt 0:03:05]} Nd3 {[%emt 0:00:52]} 33. d6 {[%emt 0:01:11]} Rd8 {[%emt 0:02:45]} 34. d7 {[%emt 0:00:23]} Kh7 {[%emt 0:00:01]} 35. Bb6 {[%emt 0:00:28]} Ra8 {[%emt 0:01:53]} 36. Ra7 {[%emt 0:00:32]} Rc8 {[%emt 0:00:31]} 1-0